bitfinex/quotes_BTCUSD_20240730
["timestamp","ask_amount","ask_price","bid_price","bid_amount"]
[1722349446484,0.00084,66484.0,66483.0,1.55659087]
[1722349446658,0.00084,66484.0,66483.0,1.69160379]
[1722349446864,0.00184,66484.0,66483.0,1.69560379]
[1722349447057,0.00084,66484.0,66483.0,1.53359087]
[1722349447893,0.00084,66484.0,66483.0,0.33005983]
[1722349448094,0.00084,66484.0,66483.0,0.48047383]
[1722349448299,0.00084,66484.0,66483.0,0.78130183]
[1722349448472,0.00084,66484.0,66483.0,1.08212983]
[1722349448941,0.00184,66484.0,66483.0,1.09612983]
[1722349449144,0.00084,66484.0,66483.0,1.08212983]
[1722349449447,0.00084,66484.0,66483.0,1.38295783]
[1722349449873,0.00184,66484.0,66483.0,1.39695783]
[1722349450277,0.00184,66484.0,66483.0,1.40695783]
[1722349450508,0.00184,66484.0,66483.0,1.53359087]
[1722349450509,0.00084,66484.0,66483.0,1.53359087]
[1722349450863,0.00184,66484.0,66483.0,1.54759087]
[1722349451105,0.00184,66484.0,66483.0,1.68260177]
[1722349451318,0.00184,66484.0,66483.0,1.67260177]
[1722349451577,0.00184,66484.0,66483.0,1.67260527]
[1722349451984,0.00184,66484.0,66483.0,1.67260621]
[1722349452129,0.00184,66484.0,66483.0,1.54759087]
[1722349452753,0.00084,66484.0,66483.0,1.53359087]
[1722349453672,0.00084,66484.0,66483.0,1.54759087]
[1722349453673,0.00184,66484.0,66483.0,1.54759087]
[1722349453813,0.00084,66484.0,66483.0,0.26978]
[1722349454018,0.00084,66484.0,66483.0,0.721022]
[1722349454217,0.00184,66484.0,66483.0,1.03585]
[1722349454466,0.00184,66484.0,66483.0,0.80826975]
[1722349454634,0.00184,66484.0,66483.0,0.50744175]
[1722349455303,0.00184,66484.0,66483.0,0.80826975]
[1722349455502,0.00184,66484.0,66483.0,0.79426975]
[1722349455503,0.00084,66484.0,66483.0,0.79426975]
[1722349455660,0.00084,66484.0,66483.0,0.34302775]
[1722349455861,0.00184,66484.0,66483.0,0.35702775]
[1722349456063,0.00184,66484.0,66483.0,0.22238]
[1722349456385,0.00284,66484.0,66483.0,0.386794]
[1722349456565,0.00284,66484.0,66483.0,0.79394805]
[1722349456963,0.00284,66484.0,66483.0,0.49312005]
[1722349457187,0.00284,66484.0,66483.0,0.34270605]
[1722349457354,0.00284,66484.0,66483.0,0.49312005]
[1722349457560,0.00284,66484.0,66483.0,0.34270605]
[1722349458115,0.00284,66484.0,66483.0,0.23638]
[1722349458673,0.00284,66484.0,66483.0,0.687622]
[1722349458892,0.00284,66484.0,66483.0,1.05155775]
[1722349460467,0.00284,66484.0,66483.0,0.747722]
[1722349461547,0.00284,66484.0,66483.0,1.04855]
[1722349461749,0.00284,66484.0,66483.0,0.88363985]
[1722349462155,0.00284,66484.0,66483.0,1.18446785]
[1722349462634,0.00284,66484.0,66483.0,0.88363985]
[1722349463479,0.00284,66484.0,66483.0,0.43239785]
[1722349463677,0.00284,66484.0,66483.0,0.29648]
[1722349463835,0.00284,66484.0,66483.0,0.446894]
[1722349464058,0.00284,66484.0,66483.0,0.747722]
[1722349464835,0.00284,66484.0,66483.0,0.29648]
[1722349466402,0.00284,66484.0,66483.0,0.23638]
[1722349466619,0.00284,66484.0,66483.0,0.15818]
[1722349466620,0.153252,66484.0,66483.0,0.15818]
[1722349467037,0.454076,66484.0,66483.0,0.15818]
[1722349467234,0.454076,66484.0,66483.0,0.159104]
[1722349467436,0.153252,66484.0,66483.0,0.159104]
[1722349467697,0.454076,66484.0,66483.0,0.159104]
[1722349468090,0.454076,66484.0,66483.0,0.059104]
[1722349469073,0.7549,66484.0,66483.0,0.028924]
[1722349469281,1.66464104,66484.0,66483.0,0.028924]
[1722349469437,1.92254104,66484.0,66483.0,0.028924]
[1722349469642,2.06323346,66484.0,66483.0,0.028924]
[1722349469843,2.30752963,66484.0,66483.0,0.028924]
[1722349470104,2.62835363,66484.0,66483.0,0.028924]
[1722349470302,2.76064537,66484.0,66483.0,0.000924]
[1722349470514,2.62635363,66484.0,66483.0,0.001924]
[1722349470683,2.62635363,66484.0,66440.0,0.02041003]
[1722349470684,0.150495,66447.0,66446.0,0.06]
[1722349470888,0.451486,66447.0,66446.0,0.06]
[1722349471979,0.0638,66457.0,66446.0,0.06]
[1722349472152,0.08947995,66469.0,66446.0,0.09018]
[1722349472153,0.00346327,66462.0,66446.0,0.09018]
[1722349472388,0.300991,66447.0,66446.0,0.09018]
[1722349472584,0.451486,66447.0,66446.0,0.03018]
[1722349472705,0.300981,66450.0,66446.0,0.03018]
[1722349472903,0.150495,66447.0,66446.0,0.03018]
[1722349473104,0.150495,66447.0,66446.0,0.13018]
[1722349473348,0.150494,66448.0,66446.0,0.13018]
[1722349473560,0.150495,66447.0,66446.0,0.13018]
[1722349473764,0.752477,66447.0,66446.0,0.13018]
[1722349474348,1.054468,66447.0,66446.0,0.04418]
[1722349474553,1.31246498,66447.0,66446.0,0.014]
[1722349474757,1.61345598,66447.0,66446.0,0.014]
[1722349474962,1.054468,66447.0,66446.0,0.014]
[1722349475492,0.753477,66447.0,66446.0,0.014]
[1722349475896,1.054468,66447.0,66446.0,0.014]
[1722349476301,0.753477,66447.0,66446.0,0.014]
[1722349476503,0.452486,66447.0,66446.0,0.0941]
[1722349476723,0.753477,66447.0,66446.0,0.0941]
[1722349476980,0.151495,66447.0,66446.0,0.0941]
[1722349477164,0.753477,66447.0,66446.0,0.0941]
[1722349477320,0.753477,66447.0,66446.0,0.014]
[1722349477542,0.452486,66447.0,66446.0,0.014]
[1722349477771,0.753477,66447.0,66446.0,0.014]
[1722349478174,1.1599146,66447.0,66446.0,0.014]
[1722349478504,1.054468,66447.0,66446.0,0.014]
[1722349479460,1.119268,66447.0,66446.0,0.014]
[1722349479661,1.26990104,66447.0,66446.0,0.014]
[1722349479926,1.57089204,66447.0,66446.0,0.014]
[1722349480866,1.57089204,66447.0,66445.0,0.000924]
[1722349480867,2.127774,66446.0,66445.0,0.000924]
[1722349481072,2.6793108,66446.0,66445.0,0.000924]
[1722349481476,2.62744852,66446.0,66445.0,0.000924]
[1722349481679,2.61744852,66446.0,66445.0,0.000924]
[1722349481921,2.62744852,66446.0,66445.0,0.000924]
[1722349484208,2.64144852,66446.0,66445.0,0.000924]
[1722349484647,1.35941904,66446.0,66445.0,0.000924]
[1722349484852,1.27911904,66446.0,66445.0,0.000924]
[1722349486511,1.26511904,66446.0,66445.0,0.000924]
[1722349486709,1.27611904,66446.0,66445.0,0.000924]
[1722349486994,1.21511904,66446.0,66445.0,0.000924]
[1722349487201,1.20411904,66446.0,66445.0,0.000924]
[1722349487505,0.90712304,66446.0,66445.0,0.000924]
[1722349487660,1.20811904,66446.0,66445.0,0.000924]
[1722349487861,1.32893094,66446.0,66445.0,0.000924]
[1722349488468,1.32493094,66446.0,66445.0,0.000924]
[1722349490966,1.33093094,66446.0,66445.0,0.000924]
[1722349491428,1.33093094,66446.0,66440.0,0.01633403]
[1722349491429,1.053563,66441.0,66440.0,0.01633403]
[1722349491573,1.20419604,66441.0,66440.0,0.01633403]
[1722349492581,1.50521404,66441.0,66440.0,0.01633403]
[1722349493337,1.64961404,66441.0,66440.0,0.01633403]
[1722349493539,1.65961404,66441.0,66440.0,0.01633403]
[1722349493684,1.81030836,66441.0,66440.0,0.01633403]
[1722349493868,1.81430836,66441.0,66440.0,0.01633403]
[1722349494267,1.81030836,66441.0,66440.0,0.01633403]
[1722349494682,1.81430836,66441.0,66440.0,0.01633403]
[1722349494898,2.11532636,66441.0,66440.0,0.01633403]
[1722349495309,1.81430836,66441.0,66440.0,0.01633403]
[1722349495828,1.83430836,66441.0,66440.0,0.01633403]
[1722349496257,2.13532636,66441.0,66440.0,0.01633403]
[1722349496597,1.83430836,66441.0,66440.0,0.01633403]
[1722349496797,2.13532636,66441.0,66440.0,0.01633403]
[1722349497034,1.81430836,66441.0,66440.0,0.01633403]
[1722349497856,1.88660338,66441.0,66440.0,0.01633403]
[1722349498054,2.18762138,66441.0,66440.0,0.01633403]
[1722349498235,2.31062138,66441.0,66440.0,0.01633403]
[1722349499655,2.30662138,66441.0,66440.0,0.01633403]
[1722349499857,2.3064562,66441.0,66440.0,0.01633403]
[1722349500004,2.3204562,66441.0,66440.0,0.01633403]
[1722349500209,2.6214742,66441.0,66440.0,0.01633403]
[1722349500777,2.62766755,66441.0,66440.0,0.01633403]
[1722349500973,2.62766755,66441.0,66422.0,0.009317]
[1722349500974,0.01,66424.0,66422.0,0.009317]
[1722349501186,0.00346327,66440.0,66422.0,0.009317]
[1722349501187,0.77356567,66423.0,66422.0,0.009317]
[1722349501389,1.47576567,66423.0,66422.0,0.009317]
[1722349501641,1.86425741,66423.0,66422.0,0.009317]
[1722349501808,2.16535741,66423.0,66422.0,0.009317]
[1722349502026,2.26961589,66423.0,66422.0,0.009317]
[1722349502231,2.23356945,66423.0,66422.0,0.009317]
[1722349502409,2.22391444,66423.0,66422.0,0.009317]
[1722349502814,2.15149508,66423.0,66422.0,0.009317]
[1722349503156,1.65977502,66423.0,66422.0,0.009317]
[1722349503359,1.61958304,66423.0,66422.0,0.009317]
[1722349503565,1.67380377,66423.0,66422.0,0.009317]
[1722349503776,2.03748523,66423.0,66422.0,0.009317]
[1722349503980,2.18028523,66423.0,66422.0,0.009317]
[1722349504134,2.31697955,66423.0,66422.0,0.009317]
[1722349504338,2.33097955,66423.0,66422.0,0.009317]
[1722349505368,2.31697955,66423.0,66422.0,0.009317]
[1722349505568,3.58717955,66423.0,66422.0,0.009317]
[1722349505769,3.56717955,66423.0,66422.0,0.009317]
[1722349505971,3.21185882,66423.0,66422.0,0.009317]
[1722349506371,2.8853645,66423.0,66422.0,0.009317]
[1722349506571,2.8953645,66423.0,66422.0,0.009317]
[1722349506931,2.9293645,66423.0,66422.0,0.009317]
[1722349507113,3.28471317,66423.0,66422.0,0.009317]
[1722349507476,2.97761317,66423.0,66422.0,0.009317]
[1722349507861,3.42440749,66423.0,66422.0,0.009317]
[1722349508063,3.43840749,66423.0,66422.0,0.009317]
[1722349508238,3.45840749,66423.0,66422.0,0.009317]
[1722349508409,3.44440749,66423.0,66422.0,0.009317]
[1722349508822,3.45840749,66423.0,66422.0,0.009317]
[1722349509123,3.59970749,66423.0,66422.0,0.009317]
[1722349509326,3.54545882,66423.0,66422.0,0.009317]
[1722349509672,3.59967658,66423.0,66422.0,0.009317]
[1722349509801,3.90077658,66423.0,66422.0,0.009317]
[1722349510003,3.59967658,66423.0,66422.0,0.009317]
[1722349510352,3.58567658,66423.0,66422.0,0.009317]
[1722349510548,3.90077658,66423.0,66422.0,0.009317]
[1722349510759,3.88677658,66423.0,66422.0,0.009317]
[1722349511161,3.90077658,66423.0,66422.0,0.009317]
[1722349511538,3.8929611,66423.0,66422.0,0.009317]
[1722349511940,3.6058611,66423.0,66422.0,0.009317]
[1722349512376,3.59967658,66423.0,66422.0,0.009317]
[1722349512730,3.59984865,66423.0,66422.0,0.009317]
[1722349513265,3.57984865,66423.0,66422.0,0.009317]
[1722349513738,3.50334865,66423.0,66422.0,0.009317]
[1722349513961,3.48934865,66423.0,66422.0,0.009317]
[1722349514180,3.50934865,66423.0,66422.0,0.009317]
[1722349514403,3.48934865,66423.0,66422.0,0.009317]
[1722349514649,3.18824865,66423.0,66422.0,0.009317]
[1722349514879,3.05155433,66423.0,66422.0,0.009317]
[1722349515092,2.9971645,66423.0,66422.0,0.009317]
[1722349515319,2.95373245,66423.0,66422.0,0.009317]
[1722349515562,2.8853645,66423.0,66422.0,0.009317]
[1722349515774,2.8993645,66423.0,66422.0,0.009317]
[1722349516025,3.10481908,66423.0,66422.0,0.009317]
[1722349516478,3.43591908,66423.0,66422.0,0.009317]
[1722349516718,3.45891908,66423.0,66422.0,0.009317]
[1722349517156,3.13781908,66423.0,66422.0,0.009317]
[1722349517368,3.31821908,66423.0,66422.0,0.009317]
[1722349517583,3.28521908,66423.0,66422.0,0.009317]
[1722349517790,3.29921908,66423.0,66422.0,0.009317]
[1722349518636,3.29521908,66423.0,66422.0,0.009317]
[1722349518853,3.35221908,66423.0,66422.0,0.009317]
[1722349519066,3.35162033,66423.0,66422.0,0.009317]
[1722349519272,3.65272033,66423.0,66422.0,0.009317]
[1722349519694,3.65890861,66423.0,66422.0,0.009317]
[1722349519919,3.63272033,66423.0,66422.0,0.009317]
[1722349520324,2.34852033,66423.0,66422.0,0.009317]
[1722349520522,2.05360655,66423.0,66422.0,0.009317]
[1722349520726,2.06760655,66423.0,66422.0,0.009317]
[1722349520931,2.03742033,66423.0,66422.0,0.009317]
[1722349521170,2.01442033,66423.0,66422.0,0.009317]
[1722349521373,2.02842033,66423.0,66422.0,0.009317]
[1722349521712,1.88391041,66423.0,66422.0,0.009317]
[1722349521910,1.91691041,66423.0,66422.0,0.009317]
[1722349522122,1.90291041,66423.0,66422.0,0.009317]
[1722349522450,1.89632568,66423.0,66422.0,0.009317]
[1722349522652,2.35430456,66423.0,66422.0,0.009317]
[1722349523204,2.05320456,66423.0,66422.0,0.009317]
[1722349523505,2.35430456,66423.0,66422.0,0.009317]
[1722349524219,2.36830456,66423.0,66422.0,0.009317]
[1722349524451,2.05320456,66423.0,66422.0,0.009317]
[1722349524806,2.38830456,66423.0,66422.0,0.009317]
[1722349525487,2.37430456,66423.0,66422.0,0.009317]
[1722349525683,2.34745884,66423.0,66422.0,0.009317]
[1722349525973,2.36764065,66423.0,66422.0,0.009317]
[1722349526166,2.38764065,66423.0,66422.0,0.009317]
[1722349526299,3.65784065,66423.0,66422.0,0.009317]
[1722349526707,3.74493227,66423.0,66422.0,0.009317]
[1722349527339,3.64384065,66423.0,66422.0,0.009317]
[1722349527538,3.74505347,66423.0,66422.0,0.009317]
[1722349527698,3.65784065,66423.0,66422.0,0.009317]
[1722349527896,3.63765884,66423.0,66422.0,0.009317]
[1722349528114,3.65165884,66423.0,66422.0,0.009317]
[1722349528314,3.63165884,66423.0,66422.0,0.009317]
[1722349528538,3.63765884,66423.0,66422.0,0.009317]
[1722349528740,3.73834331,66423.0,66422.0,0.009317]
[1722349530511,3.72434331,66423.0,66422.0,0.009317]
[1722349530714,4.02544331,66423.0,66422.0,0.009317]
[1722349530850,0.03,66417.0,66412.0,0.009317]
[1722349531053,2.19934147,66417.0,66412.0,0.009317]
[1722349531256,2.74020627,66417.0,66412.0,0.009317]
[1722349532100,2.74003634,66417.0,66412.0,0.009317]
[1722349532328,4.01023634,66417.0,66412.0,0.009317]
[1722349532471,4.05570108,66417.0,66412.0,0.009317]
[1722349533529,0.1806,66401.0,66392.0,0.0803]
[1722349533717,0.1806,66401.0,66363.0,0.0064026]
[1722349533718,0.451894,66387.0,66386.0,0.0803]
[1722349533858,1.759677,66387.0,66386.0,0.0803]
[1722349534270,1.054532,66380.0,66370.0,0.0803]
[1722349534483,1.054532,66380.0,66379.0,0.147317]
[1722349534484,1.264126,66380.0,66379.0,0.147317]
[1722349535136,1.26461084,66380.0,66379.0,0.147317]
[1722349535532,1.21134562,66380.0,66379.0,0.147317]
[1722349535758,1.20516504,66380.0,66379.0,0.147317]
[1722349535956,1.21816504,66380.0,66379.0,0.147317]
[1722349536806,1.28637708,66380.0,66379.0,0.147317]
[1722349537017,1.58767208,66380.0,66379.0,0.147317]
[1722349537222,1.62721451,66380.0,66379.0,0.086317]
[1722349537405,2.23930951,66380.0,66379.0,0.009317]
[1722349537561,0.180661,66374.0,66363.0,0.0064026]
[1722349537757,0.78342,66364.0,66363.0,0.0064026]
[1722349537957,0.78342,66364.0,66348.0,0.075]
[1722349537958,0.76351,66356.0,66348.0,0.075]
[1722349538161,0.76351,66356.0,66333.0,0.45376915]
[1722349538162,0.01,66352.0,66338.0,0.075]
[1722349538371,0.01,66352.0,66333.0,0.009328]
[1722349538372,0.75376,66334.0,66333.0,0.009328]
[1722349538572,1.088264,66334.0,66333.0,0.009328]
[1722349538752,1.188264,66334.0,66333.0,0.009328]
[1722349539137,1.78760693,66334.0,66333.0,0.009328]
[1722349539321,1.77760693,66334.0,66333.0,0.009328]
[1722349539516,1.055264,66334.0,66333.0,0.009328]
[1722349539652,0.75376,66334.0,66333.0,0.009328]
[1722349540120,1.055264,66334.0,66333.0,0.009328]
[1722349540332,1.46828173,66334.0,66333.0,0.009328]
[1722349540547,0.90439304,66334.0,66333.0,0.009328]
[1722349541165,0.60288904,66334.0,66333.0,0.009328]
[1722349541382,0.15063304,66334.0,66333.0,0.151028]
[1722349541533,0.75710431,66334.0,66333.0,0.009328]
[1722349541735,0.95306811,66334.0,66333.0,0.009328]
[1722349543199,0.150752,66334.0,66333.0,0.009328]
[1722349543331,0.00969656,66345.0,66333.0,0.009328]
[1722349543332,0.150741,66339.0,66333.0,0.009328]
[1722349543535,0.48,66346.0,66333.0,0.009328]
[1722349543536,0.150752,66334.0,66333.0,0.009328]
[1722349543846,0.15063304,66338.0,66333.0,0.009328]
[1722349544471,0.452256,66334.0,66333.0,0.009328]
[1722349544677,0.301491,66337.0,66333.0,0.009328]
[1722349544926,0.150751,66335.0,66333.0,0.009328]
[1722349545054,0.45212404,66337.0,66333.0,0.009328]
[1722349545055,0.150752,66334.0,66333.0,0.009328]
[1722349545561,0.15063304,66337.0,66333.0,0.009328]
[1722349546084,0.150752,66334.0,66333.0,0.009328]
[1722349546286,0.452256,66334.0,66333.0,0.009328]
[1722349546831,0.150752,66334.0,66333.0,0.009328]
[1722349546981,0.15063304,66337.0,66333.0,0.009328]
[1722349547766,0.07534716,66339.0,66333.0,0.009328]
[1722349547970,0.452256,66334.0,66333.0,0.009328]
[1722349548102,1.20589704,66334.0,66333.0,0.009328]
[1722349549341,1.34609704,66334.0,66333.0,0.009328]
[1722349549541,1.75809536,66334.0,66333.0,0.009328]
[1722349549885,1.45659136,66334.0,66333.0,0.009328]
[1722349550324,1.20589704,66334.0,66333.0,0.009328]
[1722349550737,0.60288904,66334.0,66333.0,0.089928]
[1722349550937,0.90439304,66334.0,66333.0,0.089928]
[1722349551768,0.30138504,66334.0,66333.0,0.089928]
[1722349551953,0.150734,66343.0,66336.0,0.150747]
[1722349552149,0.49,66359.0,66337.0,0.0825]
[1722349552150,0.15063304,66342.0,66337.0,0.0825]
[1722349552551,0.0015542,66355.0,66343.0,0.1405]
[1722349552753,0.07534716,66364.0,66342.0,0.01]
[1722349552754,0.0015542,66356.0,66342.0,0.01]
[1722349552953,0.0015542,66356.0,66345.0,0.301451]
[1722349553141,0.0015542,66356.0,66344.0,0.00301421]
[1722349553142,0.0015542,66356.0,66355.0,0.150704]
[1722349553308,0.301369,66364.0,66355.0,0.1459]
[1722349553508,0.15063304,66363.0,66355.0,0.1459]
[1722349553939,0.15063304,66363.0,66355.0,0.296602]
[1722349553940,0.15069,66362.0,66355.0,0.296602]
[1722349554138,0.150694,66360.0,66355.0,0.1459]
[1722349554338,0.48960808,66380.0,66355.0,0.1459]
[1722349554545,0.301345,66369.0,66361.0,0.150689]
[1722349554720,0.07534716,66367.0,66356.0,0.301404]
[1722349554963,0.150693,66360.0,66355.0,0.1459]
[1722349555174,0.22944347,66367.0,66355.0,0.1459]
[1722349555175,0.30138,66362.0,66355.0,0.1459]
[1722349555479,0.150702,66356.0,66355.0,0.1459]
[1722349555707,0.1507,66357.0,66355.0,0.1459]
[1722349556029,0.28126722,66373.0,66355.0,0.1459]
[1722349556030,0.03766722,66373.0,66357.0,0.150699]
[1722349556204,0.07534716,66374.0,66355.0,0.17608]
[1722349556205,0.07534716,66367.0,66355.0,0.17608]
[1722349556377,0.07534716,66367.0,66355.0,0.1459]
[1722349556378,0.07534716,66359.0,66355.0,0.1459]
[1722349556725,0.301374,66363.0,66355.0,0.1459]
[1722349556726,0.150689,66362.0,66355.0,0.1459]
[1722349556927,0.45199204,66366.0,66358.0,0.150697]
[1722349557165,0.301364,66365.0,66355.0,0.1459]
[1722349557344,0.45199704,66365.0,66355.0,0.2207737]
[1722349557586,0.37673316,66360.0,66355.0,0.1459]
[1722349557790,0.150698,66358.0,66355.0,0.1459]
[1722349557992,0.301377,66362.0,66355.0,0.1459]
[1722349557993,0.150696,66359.0,66355.0,0.1459]
[1722349558254,0.301404,66356.0,66355.0,0.1459]
[1722349558440,0.75332879,66356.0,66355.0,0.1459]
[1722349558869,0.452106,66356.0,66355.0,0.1459]
[1722349559021,0.15063304,66359.0,66355.0,0.1459]
[1722349559225,0.301396,66358.0,66355.0,0.1459]
[1722349559401,0.1507,66357.0,66355.0,0.1459]
[1722349559606,0.150689,66362.0,66355.0,0.3262634]
[1722349559809,0.301362,66366.0,66355.0,0.1755614]
[1722349560028,0.150686,66363.0,66356.0,0.1507]
[1722349560253,0.48,66371.0,66356.0,0.1507]
[1722349560254,0.30135,66368.0,66357.0,0.301398]
[1722349560584,0.00346327,66370.0,66356.0,0.04769714]
[1722349560810,0.00346327,66370.0,66355.0,0.2057414]
[1722349560811,0.150657,66376.0,66368.0,0.1381]
[1722349561017,0.30131,66377.0,66368.0,0.1381]
[1722349561018,0.150664,66373.0,66368.0,0.1381]
[1722349561232,0.15063304,66379.0,66368.0,0.1381]
[1722349561455,0.452017,66369.0,66368.0,0.1381]
[1722349561667,1.20534004,66369.0,66368.0,0.0765]
[1722349561873,1.20534004,66369.0,66361.0,0.0639]
[1722349561874,0.15063304,66369.0,66361.0,0.0639]
[1722349562090,0.00346327,66375.0,66361.0,0.0639]
[1722349562294,0.15063304,66374.0,66361.0,0.0639]
[1722349562510,0.301346,66369.0,66361.0,0.09408]
[1722349562716,0.15063304,66374.0,66361.0,0.09408]
[1722349562920,0.15063304,66374.0,66362.0,0.0030134]
[1722349563134,0.301317,66376.0,66362.0,0.0030134]
[1722349563135,0.301305,66378.0,66371.0,0.079]
[1722349563344,0.150665,66372.0,66371.0,0.079]
[1722349563556,0.753327,66372.0,66371.0,0.079]
[1722349563726,0.451996,66372.0,66371.0,0.079]
[1722349564313,1.20529104,66372.0,66371.0,0.079]
[1722349564541,0.150684,66364.0,66363.0,0.061]
[1722349564743,0.150684,66364.0,66363.0,0.1416]
[1722349564916,0.452052,66364.0,66363.0,0.1416]
[1722349565405,1.054788,66364.0,66363.0,0.1416]
[1722349565606,0.75342,66364.0,66363.0,0.1416]
[1722349566363,0.8588974,66364.0,66363.0,0.1416]
[1722349566772,1.1602654,66364.0,66363.0,0.0806]
[1722349566973,1.054788,66364.0,66363.0,0.0806]
[1722349567174,1.20542104,66364.0,66363.0,0.0806]
[1722349567381,1.054865,66359.0,66358.0,0.0605]
[1722349567621,0.7535,66357.0,66356.0,0.0766]
[1722349567824,1.0549,66357.0,66356.0,0.0766]
[1722349568257,1.20553304,66357.0,66356.0,0.0766]
[1722349570326,0.4521,66357.0,66356.0,0.0766]
[1722349570531,0.2436,66374.0,66356.0,0.0766]
[1722349570734,0.1507,66357.0,66356.0,0.0766]
[1722349570942,0.15409631,66370.0,66356.0,0.07961391]
[1722349570943,0.15063304,66370.0,66356.0,0.07961391]
[1722349571147,0.150678,66367.0,66361.0,0.0821]
[1722349571352,0.150671,66370.0,66362.0,0.00301345]
[1722349571566,0.150665,66373.0,66363.0,0.17298]
[1722349571767,0.44444115,66380.0,66365.0,0.301361]
[1722349571991,0.301312,66377.0,66366.0,0.00301321]
[1722349572201,0.150665,66373.0,66367.0,0.150676]
[1722349572405,0.150663,66374.0,66368.0,0.150673]
[1722349572620,0.48,66391.0,66373.0,0.150662]
[1722349572865,0.301261,66388.0,66374.0,0.03319289]
[1722349573071,0.00346327,66387.0,66374.0,0.33451389]
[1722349573274,0.04431882,66392.0,66375.0,0.301318]
[1722349573427,0.301264,66387.0,66376.0,0.08221272]
[1722349573635,0.15063304,66391.0,66376.0,0.08221272]
[1722349573636,0.301268,66386.0,66376.0,0.10938]
[1722349573836,0.15063304,66391.0,66376.0,0.0792]
[1722349574043,0.150653,66378.0,66376.0,0.0792]
[1722349574250,0.150648,66380.0,66376.0,0.0792]
[1722349574454,0.150645,66381.0,66376.0,0.0792]
[1722349574812,0.15063304,66391.0,66376.0,0.0792]
[1722349575014,0.301265,66387.0,66376.0,0.1415272]
[1722349575230,1.7502,66407.0,66377.0,0.00301265]
[1722349575435,0.150625,66390.0,66379.0,0.1489]
[1722349575617,0.15063304,66397.0,66385.0,0.083]
[1722349575618,0.301228,66395.0,66385.0,0.083]
[1722349575838,0.02363427,66418.0,66385.0,0.083]
[1722349575839,0.150612,66396.0,66390.0,0.150623]
[1722349576048,0.150614,66395.0,66389.0,0.15363822]
[1722349576234,0.150624,66391.0,66389.0,0.00301222]
[1722349576443,0.15063304,66406.0,66387.0,0.0644]
[1722349576655,0.301154,66412.0,66391.0,0.0762]
[1722349576856,0.0656,66419.0,66392.0,0.06661181]
[1722349576857,0.15063304,66411.0,66392.0,0.06661181]
[1722349576987,0.15063304,66411.0,66392.0,0.18247714]
[1722349577187,0.301126,66418.0,66393.0,0.15364484]
[1722349577387,0.07534716,66405.0,66395.0,0.0833]
[1722349577629,0.07534716,66404.0,66395.0,0.11348]
[1722349577805,0.07534716,66404.0,66396.0,0.1]
[1722349578006,0.19174363,66414.0,66397.0,0.15361968]
[1722349578007,0.15063304,66414.0,66397.0,0.15361968]
[1722349578210,0.150596,66403.0,66397.0,0.15361968]
[1722349578406,0.15063304,66414.0,66397.0,0.07595675]
[1722349578663,0.150595,66403.0,66397.0,0.22656475]
[1722349578866,0.150594,66404.0,66398.0,0.150606]
[1722349579068,0.150591,66405.0,66399.0,0.15361572]
[1722349579306,0.150593,66404.0,66400.0,0.0651]
[1722349579431,0.15063304,66414.0,66400.0,0.0651]
[1722349579432,0.07534716,66420.0,66402.0,0.03018]
[1722349579632,0.07534716,66420.0,66406.0,0.150587]
[1722349579633,0.150573,66413.0,66406.0,0.150587]
[1722349579831,0.150573,66413.0,66407.0,0.11803003]
[1722349580043,0.00849,66422.0,66409.0,0.03018]
[1722349580261,0.150557,66420.0,66413.0,0.150571]
[1722349580456,0.150562,66418.0,66414.0,0.03018]
[1722349580682,0.150562,66418.0,66410.0,0.1454]
[1722349580683,0.00849,66422.0,66412.0,0.00301106]
[1722349581025,0.00849,66422.0,66415.0,0.03018]
[1722349581252,0.150566,66416.0,66415.0,0.03018]
[1722349581361,0.150566,66416.0,66411.0,0.1]
[1722349581362,0.150575,66412.0,66411.0,0.1]
[1722349581571,0.451725,66412.0,66411.0,0.1]
[1722349581773,0.150575,66412.0,66411.0,0.1]
[1722349581990,0.150564,66417.0,66411.0,0.250576]
[1722349582194,0.00849,66422.0,66412.0,0.00301118]
[1722349582413,0.00849,66422.0,66411.0,0.17001515]
[1722349582414,0.301109,66421.0,66411.0,0.17001515]
[1722349582622,0.150559,66419.0,66413.0,0.15358294]
[1722349582851,0.150566,66416.0,66412.0,0.09183702]
[1722349583047,0.150558,66420.0,66414.0,0.15057]
[1722349583224,0.150556,66421.0,66415.0,0.00301104]
[1722349583422,0.301109,66421.0,66416.0,0.03821519]
[1722349583677,0.150557,66420.0,66416.0,0.03821519]
[1722349583882,0.150555,66421.0,66416.0,0.03821519]
[1722349584053,0.00849,66422.0,66416.0,0.003011]
[1722349584255,0.00849,66422.0,66415.0,0.150567]
[1722349584256,0.150555,66421.0,66415.0,0.150567]
[1722349584455,0.150562,66418.0,66414.0,0.03709607]
[1722349584668,0.301119,66419.0,66415.0,0.06138321]
[1722349584856,0.00849,66422.0,66415.0,0.06138321]
[1722349584857,0.301114,66420.0,66415.0,0.06138321]
[1722349584996,0.159042,66422.0,66416.0,0.20355063]
[1722349585399,0.00849,66422.0,66417.0,0.150563]
[1722349585609,0.00849,66422.0,66418.0,0.00301086]
[1722349585814,0.159043,66422.0,66418.0,0.03018]
[1722349586025,0.00849,66422.0,66420.0,0.1427]
[1722349586224,0.00849,66422.0,66421.0,0.00301067]
[1722349586420,0.00849,66422.0,66420.0,0.1427]
[1722349586622,0.451663,66421.0,66420.0,0.1427]
[1722349586830,0.451663,66421.0,66402.0,0.022]
[1722349586831,0.451663,66421.0,66402.0,0.0776]
[1722349586832,0.150595,66403.0,66402.0,0.0776]
[1722349587036,0.150595,66403.0,66391.0,0.0776]
[1722349587037,0.451861,66392.0,66391.0,0.0776]
[1722349587245,1.054343,66392.0,66391.0,0.0776]
[1722349587454,0.16569254,66402.0,66391.0,0.0776]
[1722349587660,0.15062,66392.0,66391.0,0.0776]
[1722349587886,0.16569254,66402.0,66391.0,0.0776]
[1722349587887,0.15063304,66402.0,66391.0,0.0776]
[1722349588102,0.753102,66392.0,66391.0,0.0776]